[Event "Titled Tuesday Blitz February 14 Early 2023"]
[White "Chylewski, Patryk"]
[Black "Abdilkhair, Abilmansur"]
[WhiteFideId "1186191"]
[BlackFideId "13716417"]
[WhiteElo "2281"]
[BlackElo "2268"]
[Result "1-0"]
[Round "06"]
[TimeControl "180+2"]
[Date "2023.02.15"]
[WhiteClock "0:01:03"]
[BlackClock "0:00:15"]

1. d4 {[%clk 0:03:00]}  Nf6 {[%clk 0:02:59]} 2. c4 {[%clk 0:02:59]}  e6 {[%clk 0:03:00]} 3. Nf3 {[%clk 0:02:58]}  b6 {[%clk 0:02:59]} 4. a3 {[%clk 0:02:56]}  Bb7 {[%clk 0:02:58]} 5. Nc3 {[%clk 0:02:56]}  d5 {[%clk 0:02:58]} 6. cxd5 {[%clk 0:02:57]}  exd5 {[%clk 0:02:58]} 7. g3 {[%clk 0:02:56]}  Be7 {[%clk 0:02:57]} 8. Bg2 {[%clk 0:02:57]}  O-O {[%clk 0:02:57]} 9. O-O {[%clk 0:02:56]}  Ne4 {[%clk 0:02:58]} 10. Nxe4 {[%clk 0:02:48]}  dxe4 {[%clk 0:02:58]} 11. Ne5 {[%clk 0:02:48]}  Nd7 {[%clk 0:02:54]} 12. Qa4 {[%clk 0:02:37]}  Nxe5 {[%clk 0:02:46]} 13. dxe5 {[%clk 0:02:38]}  Qd5 {[%clk 0:02:42]} 14. Rd1 {[%clk 0:02:26]}  Qxe5 {[%clk 0:02:39]} 15. Bf4 {[%clk 0:02:26]}  Qxb2 {[%clk 0:02:39]} 16. Bxe4 {[%clk 0:02:19]}  Bxe4 {[%clk 0:01:38]} 17. Qxe4 {[%clk 0:02:20]}  Bf6 {[%clk 0:01:39]} 18. e3 {[%clk 0:02:08]}  Qxa1 {[%clk 0:01:36]} 19. Rxa1 {[%clk 0:02:08]}  Bxa1 {[%clk 0:01:37]} 20. Bxc7 {[%clk 0:02:08]}  Rac8 {[%clk 0:01:30]} 21. Qb7 {[%clk 0:02:07]}  Ra8 {[%clk 0:01:21]} 22. h4 {[%clk 0:02:00]}  Bb2 {[%clk 0:01:20]} 23. a4 {[%clk 0:01:59]}  Ba3 {[%clk 0:01:19]} 24. Be5 {[%clk 0:01:57]}  Bc5 {[%clk 0:01:16]} 25. h5 {[%clk 0:01:54]}  h6 {[%clk 0:01:15]} 26. Bb2 {[%clk 0:01:53]}  a5 {[%clk 0:01:09]} 27. Qe4 {[%clk 0:01:52]}  Rae8 {[%clk 0:01:05]} 28. Qg4 {[%clk 0:01:50]}  f6 {[%clk 0:01:04]} 29. Qc4+ {[%clk 0:01:49]}  Kh8 {[%clk 0:01:02]} 30. Kg2 {[%clk 0:01:48]}  Rd8 {[%clk 0:00:58]} 31. Bc3 {[%clk 0:01:47]}  Rc8 {[%clk 0:00:52]} 32. Qb3 {[%clk 0:01:46]}  Rfd8 {[%clk 0:00:50]} 33. Qe6 {[%clk 0:01:42]}  Bb4 {[%clk 0:00:28]} 34. Bxf6 {[%clk 0:01:14]}  gxf6 {[%clk 0:00:29]} 35. Qxf6+ {[%clk 0:01:15]}  Kg8 {[%clk 0:00:29]} 36. Qg6+ {[%clk 0:01:15]}  Kf8 {[%clk 0:00:28]} 37. Qxh6+ {[%clk 0:01:15]}  Ke8 {[%clk 0:00:29]} 38. Qxb6 {[%clk 0:01:13]}  Rd6 {[%clk 0:00:26]} 39. Qb5+ {[%clk 0:01:09]}  Kd8 {[%clk 0:00:24]} 40. h6 {[%clk 0:01:05]}  Rc5 {[%clk 0:00:14]} 41. Qb8+ {[%clk 0:01:03]}  Ke7 {[%clk 0:00:15]} 42. h7 {[%clk 0:01:03]} 1-0


[Site "https://www.chess.com"]

[Event "Titled Tuesday Blitz February 14 Early 2023"]
[White "Enkhtuul, Altan-Ulzii"]
[Black "Yurovskykh, Oleksandr"]
[WhiteFideId "4901444"]
[BlackFideId "14134020"]
[WhiteElo "2254"]
[BlackElo "2328"]
[Result "1-0"]
[Round "06"]
[TimeControl "180+2"]
[Date "2023.02.15"]
[WhiteClock "0:00:24"]
[BlackClock "0:00:01"]

1. d4 {[%clk 0:02:57]}  d5 {[%clk 0:02:47]} 2. Nf3 {[%clk 0:02:57]}  Nf6 {[%clk 0:02:46]} 3. g3 {[%clk 0:02:56]}  Bg4 {[%clk 0:02:44]} 4. Bg2 {[%clk 0:02:57]}  e6 {[%clk 0:02:44]} 5. O-O {[%clk 0:02:57]}  Nbd7 {[%clk 0:02:45]} 6. c4 {[%clk 0:02:57]}  c6 {[%clk 0:02:45]} 7. Qc2 {[%clk 0:02:57]}  Be7 {[%clk 0:02:44]} 8. Nbd2 {[%clk 0:02:57]}  Bf5 {[%clk 0:02:43]} 9. Qb3 {[%clk 0:02:56]}  Qb6 {[%clk 0:02:43]} 10. c5 {[%clk 0:02:56]}  Qxb3 {[%clk 0:02:43]} 11. axb3 {[%clk 0:02:57]}  h6 {[%clk 0:02:41]} 12. b4 {[%clk 0:02:57]}  a6 {[%clk 0:02:40]} 13. Nb3 {[%clk 0:02:56]}  Bd8 {[%clk 0:02:19]} 14. Re1 {[%clk 0:02:45]}  Bc7 {[%clk 0:02:17]} 15. Bf4 {[%clk 0:02:42]}  Bxf4 {[%clk 0:02:16]} 16. gxf4 {[%clk 0:02:43]}  O-O-O {[%clk 0:02:14]} 17. Ne5 {[%clk 0:02:40]}  Nxe5 {[%clk 0:02:12]} 18. fxe5 {[%clk 0:02:41]}  Nd7 {[%clk 0:02:12]} 19. Rec1 {[%clk 0:02:33]}  Kc7 {[%clk 0:02:12]} 20. Nd2 {[%clk 0:02:15]}  f6 {[%clk 0:02:10]} 21. f4 {[%clk 0:02:14]}  g5 {[%clk 0:02:09]} 22. exf6 {[%clk 0:02:10]}  Nxf6 {[%clk 0:02:10]} 23. fxg5 {[%clk 0:02:08]}  hxg5 {[%clk 0:02:11]} 24. Nf3 {[%clk 0:02:08]}  g4 {[%clk 0:02:06]} 25. Ne5 {[%clk 0:02:08]}  Rh7 {[%clk 0:02:06]} 26. b5 {[%clk 0:01:40]}  axb5 {[%clk 0:02:05]} 27. Ra7 {[%clk 0:01:31]}  Rdh8 {[%clk 0:02:04]} 28. Rca1 {[%clk 0:01:31]}  Rxh2 {[%clk 0:01:58]} 29. R1a6 {[%clk 0:01:25]}  Be4 {[%clk 0:01:50]} 30. Bxe4 {[%clk 0:01:04]}  Nxe4 {[%clk 0:01:51]} 31. Nxg4 {[%clk 0:01:04]}  Rxe2 {[%clk 0:01:40]} 32. Rb6 {[%clk 0:01:03]}  Nd6 {[%clk 0:01:07]} 33. Ne5 {[%clk 0:00:39]}  Rd8 {[%clk 0:00:08]} 34. Rxc6+ {[%clk 0:00:36]}  Kb8 {[%clk 0:00:08]} 35. Rxd6 {[%clk 0:00:36]}  Rg8+ {[%clk 0:00:08]} 36. Kf1 {[%clk 0:00:36]}  Rxe5 {[%clk 0:00:06]} 37. Rxb7+ {[%clk 0:00:28]}  Kxb7 {[%clk 0:00:06]} 38. dxe5 {[%clk 0:00:28]}  Rg6 {[%clk 0:00:04]} 39. Rb6+ {[%clk 0:00:25]}  Kc7 {[%clk 0:00:03]} 40. b4 {[%clk 0:00:25]}  Rg4 {[%clk 0:00:01]} 41. Rxb5 {[%clk 0:00:24]} 1-0


[Site "https://www.chess.com"]

[Event "Titled Tuesday Blitz February 14 Early 2023"]
[White "Kejna, Piotr"]
[Black "Prado Lobo, Jonas"]
[WhiteFideId "21821704"]
[BlackFideId "32050666"]
[WhiteElo "2027"]
[BlackElo "2313"]
[Result "1-0"]
[Round "06"]
[TimeControl "180+2"]
[Date "2023.02.15"]
[WhiteClock "0:00:53"]
[BlackClock "0:01:44"]

1. e4 {[%clk 0:03:00]}  c5 {[%clk 0:02:54]} 2. b3 {[%clk 0:03:00]}  Nf6 {[%clk 0:02:49]} 3. Nc3 {[%clk 0:02:58]}  d5 {[%clk 0:02:48]} 4. exd5 {[%clk 0:02:58]}  Nxd5 {[%clk 0:02:49]} 5. Nxd5 {[%clk 0:02:55]}  Qxd5 {[%clk 0:02:50]} 6. Nf3 {[%clk 0:02:54]}  Bg4 {[%clk 0:02:43]} 7. Bb2 {[%clk 0:02:52]}  Qe4+ {[%clk 0:02:21]} 8. Be2 {[%clk 0:02:30]}  Bxf3 {[%clk 0:02:21]} 9. gxf3 {[%clk 0:02:31]}  Qf4 {[%clk 0:02:21]} 10. d4 {[%clk 0:02:16]}  Nc6 {[%clk 0:02:15]} 11. d5 {[%clk 0:01:52]}  O-O-O {[%clk 0:02:08]} 12. c4 {[%clk 0:01:24]}  Ne5 {[%clk 0:01:58]} 13. Bc1 {[%clk 0:00:54]}  Nxf3+ {[%clk 0:01:42]} 14. Bxf3 {[%clk 0:00:53]}  Qe5+ {[%clk 0:01:43]} 15. Be3 {[%clk 0:00:53]}  Qxa1 {[%clk 0:01:44]} 16. Qxa1 {[%clk 0:00:53]} 1-0


[Site "https://www.chess.com"]

[Event "Titled Tuesday Blitz February 14 Early 2023"]
[White "Hoffmann, Asa"]
[Black "Badelka, Olga"]
[WhiteFideId "2001470"]
[BlackFideId "13509926"]
[WhiteElo "2185"]
[BlackElo "2406"]
[Result "1-0"]
[Round "06"]
[TimeControl "180+2"]
[Date "2023.02.15"]
[WhiteClock "0:00:34"]
[BlackClock "0:00:01"]

1. d4 {[%clk 0:02:58]}  Nf6 {[%clk 0:02:59]} 2. Bg5 {[%clk 0:02:54]}  d5 {[%clk 0:02:58]} 3. Nd2 {[%clk 0:02:53]}  Nbd7 {[%clk 0:02:43]} 4. e3 {[%clk 0:02:52]}  b6 {[%clk 0:02:41]} 5. f4 {[%clk 0:02:52]}  Bb7 {[%clk 0:02:40]} 6. Bd3 {[%clk 0:02:52]}  c5 {[%clk 0:02:34]} 7. c3 {[%clk 0:02:51]}  Ne4 {[%clk 0:02:30]} 8. Ngf3 {[%clk 0:02:48]}  f6 {[%clk 0:02:30]} 9. Bh4 {[%clk 0:02:47]}  e6 {[%clk 0:02:27]} 10. O-O {[%clk 0:02:43]}  Qc7 {[%clk 0:02:24]} 11. Bxe4 {[%clk 0:02:26]}  dxe4 {[%clk 0:02:24]} 12. Ne1 {[%clk 0:02:25]}  f5 {[%clk 0:02:18]} 13. a4 {[%clk 0:02:18]}  cxd4 {[%clk 0:01:25]} 14. exd4 {[%clk 0:02:16]}  Bd6 {[%clk 0:01:19]} 15. Bg3 {[%clk 0:01:57]}  O-O {[%clk 0:01:16]} 16. Nc2 {[%clk 0:01:57]}  g5 {[%clk 0:01:07]} 17. Qh5 {[%clk 0:01:49]}  gxf4 {[%clk 0:00:55]} 18. Qg5+ {[%clk 0:01:48]}  Kh8 {[%clk 0:00:56]} 19. Bxf4 {[%clk 0:01:48]}  Rg8 {[%clk 0:00:52]} 20. Bxd6 {[%clk 0:01:42]}  Qxd6 {[%clk 0:00:51]} 21. Qf4 {[%clk 0:01:39]}  e5 {[%clk 0:00:35]} 22. Nc4 {[%clk 0:01:21]}  e3 {[%clk 0:00:05]} 23. N2xe3 {[%clk 0:01:01]}  exf4 {[%clk 0:00:04]} 24. Nxd6 {[%clk 0:01:00]}  Be4 {[%clk 0:00:04]} 25. Rxf4 {[%clk 0:00:51]}  Rg6 {[%clk 0:00:03]} 26. Ndxf5 {[%clk 0:00:49]}  Re8 {[%clk 0:00:02]} 27. Raf1 {[%clk 0:00:46]}  Bc6 {[%clk 0:00:01]} 28. Kf2 {[%clk 0:00:43]}  Kg8 {[%clk 0:00:01]} 29. g3 {[%clk 0:00:42]}  Kh8 {[%clk 0:00:01]} 30. Ke2 {[%clk 0:00:41]}  Rge6 {[%clk 0:00:01]} 31. Kd2 {[%clk 0:00:41]}  Nf6 {[%clk 0:00:01]} 32. Ng4 {[%clk 0:00:36]}  Ne4+ {[%clk 0:00:01]} 33. Kc1 {[%clk 0:00:35]}  Nd6 {[%clk 0:00:01]} 34. Ne5 {[%clk 0:00:34]} 1-0


[Site "https://www.chess.com"]

[Event "Titled Tuesday Blitz February 14 Early 2023"]
[White "Robledo, Cristian"]
[Black "Ruge, Edison"]
[WhiteFideId "133450"]
[BlackFideId "4401000"]
[WhiteElo "2270"]
[BlackElo "2201"]
[Result "1-0"]
[Round "06"]
[TimeControl "180+2"]
[Date "2023.02.15"]
[WhiteClock "0:00:10"]
[BlackClock "0:00:03"]

1. d4 {[%clk 0:03:00]}  Nf6 {[%clk 0:02:57]} 2. Bg5 {[%clk 0:03:00]}  Ne4 {[%clk 0:02:56]} 3. h4 {[%clk 0:02:53]}  c5 {[%clk 0:02:56]} 4. d5 {[%clk 0:02:52]}  d6 {[%clk 0:02:48]} 5. Nd2 {[%clk 0:02:52]}  Nxd2 {[%clk 0:02:40]} 6. Bxd2 {[%clk 0:02:53]}  h5 {[%clk 0:02:35]} 7. e4 {[%clk 0:02:49]}  g6 {[%clk 0:02:34]} 8. Bc3 {[%clk 0:02:48]}  Rg8 {[%clk 0:02:32]} 9. Nf3 {[%clk 0:02:47]}  Bg7 {[%clk 0:02:32]} 10. e5 {[%clk 0:02:47]}  Bg4 {[%clk 0:02:27]} 11. Bb5+ {[%clk 0:02:37]}  Kf8 {[%clk 0:02:26]} 12. Qe2 {[%clk 0:02:29]}  Nd7 {[%clk 0:02:20]} 13. Bxd7 {[%clk 0:02:16]}  Qxd7 {[%clk 0:02:18]} 14. O-O-O {[%clk 0:02:12]}  Qf5 {[%clk 0:02:18]} 15. Rhe1 {[%clk 0:02:04]}  Bxf3 {[%clk 0:02:16]} 16. gxf3 {[%clk 0:02:02]}  Bxe5 {[%clk 0:01:58]} 17. Bxe5 {[%clk 0:01:57]}  Qxe5 {[%clk 0:01:58]} 18. Qb5 {[%clk 0:01:47]}  Qf4+ {[%clk 0:01:54]} 19. Kb1 {[%clk 0:01:48]}  b6 {[%clk 0:01:41]} 20. Qd7 {[%clk 0:01:32]}  Re8 {[%clk 0:01:40]} 21. Qxa7 {[%clk 0:01:32]}  Qxh4 {[%clk 0:01:35]} 22. Qxb6 {[%clk 0:01:30]}  Kg7 {[%clk 0:01:34]} 23. Qb7 {[%clk 0:01:20]}  Qf6 {[%clk 0:01:26]} 24. c3 {[%clk 0:01:11]}  h4 {[%clk 0:01:25]} 25. a4 {[%clk 0:01:00]}  Rb8 {[%clk 0:01:18]} 26. Qxe7 {[%clk 0:00:56]}  Qxc3 {[%clk 0:01:17]} 27. Re2 {[%clk 0:00:46]}  Qxf3 {[%clk 0:01:09]} 28. Ree1 {[%clk 0:00:31]}  Qxf2 {[%clk 0:01:02]} 29. Re2 {[%clk 0:00:27]}  Qf5+ {[%clk 0:01:01]} 30. Ka2 {[%clk 0:00:21]}  Rge8 {[%clk 0:00:56]} 31. Qxd6 {[%clk 0:00:19]}  Rxe2 {[%clk 0:00:50]} 32. Qxb8 {[%clk 0:00:20]}  Qc2 {[%clk 0:00:45]} 33. Qb3 {[%clk 0:00:18]}  Qe4 {[%clk 0:00:35]} 34. d6 {[%clk 0:00:17]}  c4 {[%clk 0:00:35]} 35. Qc3+ {[%clk 0:00:17]}  Kh7 {[%clk 0:00:32]} 36. d7 {[%clk 0:00:17]}  Re3 {[%clk 0:00:22]} 37. Qd4 {[%clk 0:00:12]}  Qc2 {[%clk 0:00:13]} 38. d8=Q {[%clk 0:00:10]}  Qxa4+ {[%clk 0:00:13]} 39. Kb1 {[%clk 0:00:10]}  Re8 {[%clk 0:00:05]} 40. Q8xh4+ {[%clk 0:00:10]}  Kg8 {[%clk 0:00:03]} 41. Qhh8# {[%clk 0:00:10]} 1-0


[Site "https://www.chess.com"]

[Event "Titled Tuesday Blitz February 14 Early 2023"]
[White "Escalona Landi, Samid Eduardo"]
[Black "Chernov, Mikhail"]
[WhiteFideId "3937437"]
[BlackFideId "24143170"]
[WhiteElo "2218"]
[BlackElo "2205"]
[Result "1-0"]
[Round "06"]
[TimeControl "180+2"]
[Date "2023.02.15"]
[WhiteClock "0:00:32"]
[BlackClock "0:00:03"]

1. e4 {[%clk 0:03:00]}  c5 {[%clk 0:02:58]} 2. Nf3 {[%clk 0:03:00]}  Nc6 {[%clk 0:02:56]} 3. Bb5 {[%clk 0:02:59]}  g6 {[%clk 0:02:55]} 4. Bxc6 {[%clk 0:02:59]}  bxc6 {[%clk 0:02:53]} 5. d3 {[%clk 0:02:56]}  Bg7 {[%clk 0:02:54]} 6. h3 {[%clk 0:02:56]}  d6 {[%clk 0:02:53]} 7. e5 {[%clk 0:02:53]}  dxe5 {[%clk 0:02:50]} 8. Qe2 {[%clk 0:02:50]}  f6 {[%clk 0:02:41]} 9. Nc3 {[%clk 0:02:47]}  Ba6 {[%clk 0:02:33]} 10. O-O {[%clk 0:02:46]}  Nh6 {[%clk 0:02:27]} 11. Ne4 {[%clk 0:02:41]}  c4 {[%clk 0:02:19]} 12. dxc4 {[%clk 0:02:38]}  O-O {[%clk 0:02:16]} 13. Rd1 {[%clk 0:02:35]}  Qc8 {[%clk 0:02:13]} 14. Nc5 {[%clk 0:02:28]}  Nf5 {[%clk 0:02:08]} 15. b3 {[%clk 0:02:24]}  Bh6 {[%clk 0:01:53]} 16. Bxh6 {[%clk 0:02:10]}  Nxh6 {[%clk 0:01:53]} 17. Rd7 {[%clk 0:01:48]}  Re8 {[%clk 0:01:26]} 18. Qd2 {[%clk 0:01:45]}  Nf5 {[%clk 0:01:23]} 19. Qa5 {[%clk 0:01:45]}  Rd8 {[%clk 0:00:41]} 20. Rad1 {[%clk 0:01:27]}  Nd4 {[%clk 0:00:35]} 21. Rxd8+ {[%clk 0:01:20]}  Qxd8 {[%clk 0:00:36]} 22. Qxd8+ {[%clk 0:01:19]}  Rxd8 {[%clk 0:00:37]} 23. Nxd4 {[%clk 0:01:19]}  Bc8 {[%clk 0:00:33]} 24. c3 {[%clk 0:01:11]}  exd4 {[%clk 0:00:24]} 25. Rxd4 {[%clk 0:01:12]}  Re8 {[%clk 0:00:11]} 26. b4 {[%clk 0:01:08]}  Kf7 {[%clk 0:00:11]} 27. a4 {[%clk 0:01:08]}  e5 {[%clk 0:00:08]} 28. Rd6 {[%clk 0:01:08]}  Be6 {[%clk 0:00:07]} 29. Rxc6 {[%clk 0:01:08]}  Bxc4 {[%clk 0:00:06]} 30. Ne4 {[%clk 0:01:06]}  Bd5 {[%clk 0:00:05]} 31. Nd6+ {[%clk 0:00:39]}  Ke6 {[%clk 0:00:05]} 32. Ra6 {[%clk 0:00:36]}  Ra8 {[%clk 0:00:03]} 33. c4 {[%clk 0:00:32]} 1-0


[Site "https://www.chess.com"]

[Event "Titled Tuesday Blitz February 14 Early 2023"]
[White "Forgacs, Attila Jr."]
[Black "Florescu, Codrut-Constantin"]
[WhiteFideId "773654"]
[BlackFideId "1202200"]
[WhiteElo "2264"]
[BlackElo "2259"]
[Result "0-1"]
[Round "06"]
[TimeControl "180+2"]
[Date "2023.02.15"]
[WhiteClock "0:00:02"]
[BlackClock "0:00:29"]

1. e4 {[%clk 0:03:00]}  c5 {[%clk 0:02:59]} 2. Nf3 {[%clk 0:02:59]}  e6 {[%clk 0:03:00]} 3. d4 {[%clk 0:02:58]}  cxd4 {[%clk 0:03:01]} 4. Nxd4 {[%clk 0:02:59]}  a6 {[%clk 0:03:01]} 5. c4 {[%clk 0:02:59]}  Nf6 {[%clk 0:03:00]} 6. Nc3 {[%clk 0:02:59]}  Bb4 {[%clk 0:03:00]} 7. Qf3 {[%clk 0:02:53]}  Qc7 {[%clk 0:02:59]} 8. Nc2 {[%clk 0:02:42]}  Be7 {[%clk 0:02:56]} 9. Bf4 {[%clk 0:02:35]}  d6 {[%clk 0:02:56]} 10. Be2 {[%clk 0:02:32]}  b6 {[%clk 0:02:56]} 11. O-O {[%clk 0:02:31]}  Bb7 {[%clk 0:02:56]} 12. Rfd1 {[%clk 0:02:30]}  Nbd7 {[%clk 0:02:52]} 13. Rac1 {[%clk 0:02:29]}  Ne5 {[%clk 0:02:50]} 14. Bxe5 {[%clk 0:02:28]}  dxe5 {[%clk 0:02:51]} 15. b4 {[%clk 0:02:24]}  O-O {[%clk 0:02:50]} 16. Qe3 {[%clk 0:02:23]}  Rac8 {[%clk 0:02:41]} 17. Kf1 {[%clk 0:02:20]}  g6 {[%clk 0:02:39]} 18. f3 {[%clk 0:02:19]}  Nh5 {[%clk 0:02:38]} 19. g3 {[%clk 0:02:13]}  f5 {[%clk 0:02:37]} 20. Kg2 {[%clk 0:02:13]}  f4 {[%clk 0:02:34]} 21. Qf2 {[%clk 0:02:07]}  fxg3 {[%clk 0:02:24]} 22. hxg3 {[%clk 0:02:05]}  Bg5 {[%clk 0:02:24]} 23. Ne3 {[%clk 0:02:00]}  Rf7 {[%clk 0:02:21]} 24. Rc2 {[%clk 0:01:47]}  Rcf8 {[%clk 0:02:20]} 25. Ng4 {[%clk 0:01:42]}  Ng7 {[%clk 0:02:12]} 26. c5 {[%clk 0:01:26]}  b5 {[%clk 0:02:11]} 27. a4 {[%clk 0:01:25]}  h5 {[%clk 0:02:06]} 28. Nh2 {[%clk 0:01:22]}  bxa4 {[%clk 0:02:06]} 29. Ra2 {[%clk 0:01:18]}  Bc6 {[%clk 0:01:28]} 30. Bxa6 {[%clk 0:01:12]}  h4 {[%clk 0:01:21]} 31. gxh4 {[%clk 0:01:11]}  Bf4 {[%clk 0:01:18]} 32. Be2 {[%clk 0:01:08]}  Bxh2 {[%clk 0:01:16]} 33. Kxh2 {[%clk 0:01:08]}  Nh5 {[%clk 0:01:17]} 34. b5 {[%clk 0:00:59]}  Be8 {[%clk 0:01:13]} 35. b6 {[%clk 0:00:51]}  Qe7 {[%clk 0:01:12]} 36. Rg1 {[%clk 0:00:40]}  Rf4 {[%clk 0:01:11]} 37. Kg2 {[%clk 0:00:30]}  Rxh4 {[%clk 0:01:07]} 38. Kf1 {[%clk 0:00:30]}  Nf4 {[%clk 0:01:07]} 39. Rb2 {[%clk 0:00:18]}  Nh3 {[%clk 0:01:05]} 40. Qg3 {[%clk 0:00:15]}  Nxg1 {[%clk 0:01:02]} 41. Kxg1 {[%clk 0:00:15]}  a3 {[%clk 0:00:56]} 42. Rb3 {[%clk 0:00:09]}  Qxc5+ {[%clk 0:00:56]} 43. Kg2 {[%clk 0:00:07]}  Rh7 {[%clk 0:00:45]} 44. b7 {[%clk 0:00:06]}  Rxb7 {[%clk 0:00:45]} 45. Rxb7 {[%clk 0:00:06]}  Qxc3 {[%clk 0:00:45]} 46. Qg5 {[%clk 0:00:04]}  Qc2 {[%clk 0:00:40]} 47. Kf2 {[%clk 0:00:03]}  Qc5+ {[%clk 0:00:40]} 48. Kg2 {[%clk 0:00:03]}  Qc6 {[%clk 0:00:38]} 49. Re7 {[%clk 0:00:02]}  a2 {[%clk 0:00:29]} 50. Qxe5 {[%clk 0:00:02]}  Bf7 {[%clk 0:00:29]} 0-1


[Site "https://www.chess.com"]

[Event "Titled Tuesday Blitz February 14 Early 2023"]
[White "Demin, Vladimir"]
[Black "Sarkar, Justin"]
[WhiteFideId "4167457"]
[BlackFideId "2010011"]
[WhiteElo "2430"]
[BlackElo "2309"]
[Result "1-0"]
[Round "06"]
[TimeControl "180+2"]
[Date "2023.02.15"]
[WhiteClock "0:01:34"]
[BlackClock "0:00:01"]

1. e4 {[%clk 0:03:00]}  e5 {[%clk 0:02:48]} 2. Nf3 {[%clk 0:03:00]}  Nc6 {[%clk 0:02:48]} 3. Bc4 {[%clk 0:03:00]}  Nf6 {[%clk 0:02:48]} 4. Ng5 {[%clk 0:03:01]}  d5 {[%clk 0:02:47]} 5. exd5 {[%clk 0:03:01]}  Na5 {[%clk 0:02:46]} 6. d3 {[%clk 0:03:01]}  h6 {[%clk 0:02:36]} 7. Nf3 {[%clk 0:03:01]}  e4 {[%clk 0:02:34]} 8. dxe4 {[%clk 0:03:02]}  Nxc4 {[%clk 0:02:30]} 9. Qd4 {[%clk 0:03:01]}  Nb6 {[%clk 0:01:52]} 10. c4 {[%clk 0:03:00]}  Bb4+ {[%clk 0:01:36]} 11. Nfd2 {[%clk 0:02:56]}  c5 {[%clk 0:01:29]} 12. Qd3 {[%clk 0:02:54]}  O-O {[%clk 0:01:26]} 13. O-O {[%clk 0:02:50]}  Ng4 {[%clk 0:01:18]} 14. Nf3 {[%clk 0:02:43]}  Nd7 {[%clk 0:01:07]} 15. Bf4 {[%clk 0:02:38]}  Qf6 {[%clk 0:01:01]} 16. Bc1 {[%clk 0:02:16]}  Nde5 {[%clk 0:00:56]} 17. Nxe5 {[%clk 0:02:13]}  Nxe5 {[%clk 0:00:52]} 18. Qe2 {[%clk 0:02:11]}  g5 {[%clk 0:00:39]} 19. a3 {[%clk 0:02:05]}  Ba5 {[%clk 0:00:38]} 20. f4 {[%clk 0:01:56]}  gxf4 {[%clk 0:00:37]} 21. Bxf4 {[%clk 0:01:56]}  Bc7 {[%clk 0:00:20]} 22. Nc3 {[%clk 0:01:52]}  a6 {[%clk 0:00:13]} 23. Rad1 {[%clk 0:01:49]}  Bd6 {[%clk 0:00:07]} 24. b4 {[%clk 0:01:48]}  b6 {[%clk 0:00:05]} 25. b5 {[%clk 0:01:46]}  a5 {[%clk 0:00:03]} 26. Na4 {[%clk 0:01:45]}  Rb8 {[%clk 0:00:03]} 27. Nb2 {[%clk 0:01:44]}  Qg7 {[%clk 0:00:03]} 28. Bxe5 {[%clk 0:01:41]}  Bxe5 {[%clk 0:00:03]} 29. Nd3 {[%clk 0:01:41]}  Bg4 {[%clk 0:00:03]} 30. Rf3 {[%clk 0:01:35]}  Bd4+ {[%clk 0:00:02]} 31. Kh1 {[%clk 0:01:34]}  Bxf3 {[%clk 0:00:03]} 32. Qxf3 {[%clk 0:01:35]}  Qg6 {[%clk 0:00:02]} 33. Rf1 {[%clk 0:01:34]}  Rbe8 {[%clk 0:00:01]} 34. Nf4 {[%clk 0:01:34]} 1-0


[Site "https://www.chess.com"]

[Event "Titled Tuesday Blitz February 14 Early 2023"]
[White "Kopczynski, Michal"]
[Black "Valle Maytin, Luis Enrique"]
[WhiteFideId "1124200"]
[BlackFideId "3503666"]
[WhiteElo "2225"]
[BlackElo "2241"]
[Result "1-0"]
[Round "06"]
[TimeControl "180+2"]
[Date "2023.02.15"]
[WhiteClock "0:00:39"]
[BlackClock "0:00:01"]

1. e4 {[%clk 0:03:00]}  c6 {[%clk 0:02:59]} 2. d4 {[%clk 0:03:01]}  d5 {[%clk 0:03:00]} 3. e5 {[%clk 0:03:01]}  c5 {[%clk 0:03:00]} 4. dxc5 {[%clk 0:03:01]}  e6 {[%clk 0:03:00]} 5. Be3 {[%clk 0:02:59]}  Nc6 {[%clk 0:02:47]} 6. f4 {[%clk 0:02:59]}  Nh6 {[%clk 0:02:37]} 7. Bd3 {[%clk 0:02:57]}  d4 {[%clk 0:02:32]} 8. Bf2 {[%clk 0:02:55]}  Bxc5 {[%clk 0:02:32]} 9. Nd2 {[%clk 0:02:55]}  Bb4 {[%clk 0:02:22]} 10. a3 {[%clk 0:02:53]}  Ba5 {[%clk 0:02:18]} 11. h3 {[%clk 0:02:49]}  g5 {[%clk 0:02:08]} 12. Qh5 {[%clk 0:02:41]}  Nf5 {[%clk 0:01:58]} 13. Bxf5 {[%clk 0:02:37]}  exf5 {[%clk 0:01:55]} 14. O-O-O {[%clk 0:02:36]}  Be6 {[%clk 0:01:45]} 15. Qxg5 {[%clk 0:02:32]}  Qc7 {[%clk 0:01:33]} 16. Ngf3 {[%clk 0:02:27]}  Bb6 {[%clk 0:01:25]} 17. Qf6 {[%clk 0:02:11]}  Rg8 {[%clk 0:01:23]} 18. Ng5 {[%clk 0:02:09]}  Qd7 {[%clk 0:00:57]} 19. Nxe6 {[%clk 0:02:07]}  fxe6 {[%clk 0:00:58]} 20. Nc4 {[%clk 0:02:06]}  Bd8 {[%clk 0:00:57]} 21. Qh6 {[%clk 0:01:56]}  Bc7 {[%clk 0:00:50]} 22. Qh5+ {[%clk 0:01:52]}  Rg6 {[%clk 0:00:42]} 23. Bh4 {[%clk 0:01:28]}  b5 {[%clk 0:00:21]} 24. Nd2 {[%clk 0:01:25]}  Bd8 {[%clk 0:00:20]} 25. Nb3 {[%clk 0:01:20]}  Bxh4 {[%clk 0:00:14]} 26. Qxh4 {[%clk 0:01:21]}  Rd8 {[%clk 0:00:14]} 27. g4 {[%clk 0:01:18]}  fxg4 {[%clk 0:00:12]} 28. hxg4 {[%clk 0:01:18]}  Qe7 {[%clk 0:00:11]} 29. Qxh7 {[%clk 0:01:09]}  Qxh7 {[%clk 0:00:09]} 30. Rxh7 {[%clk 0:01:10]}  Rxg4 {[%clk 0:00:10]} 31. Rc7 {[%clk 0:01:05]}  Ne7 {[%clk 0:00:06]} 32. Nxd4 {[%clk 0:01:01]}  Rd5 {[%clk 0:00:02]} 33. Nxe6 {[%clk 0:00:55]}  Rxd1+ {[%clk 0:00:02]} 34. Kxd1 {[%clk 0:00:55]}  Rg1+ {[%clk 0:00:02]} 35. Kd2 {[%clk 0:00:55]}  Rf1 {[%clk 0:00:02]} 36. Rxa7 {[%clk 0:00:53]}  Nc6 {[%clk 0:00:02]} 37. Rc7 {[%clk 0:00:50]}  Ne7 {[%clk 0:00:03]} 38. Rb7 {[%clk 0:00:48]}  Rh1 {[%clk 0:00:03]} 39. Rxb5 {[%clk 0:00:48]}  Rh2+ {[%clk 0:00:03]} 40. Kc3 {[%clk 0:00:48]}  Rh6 {[%clk 0:00:03]} 41. Rb8+ {[%clk 0:00:44]}  Kd7 {[%clk 0:00:02]} 42. Nd4 {[%clk 0:00:44]}  Nd5+ {[%clk 0:00:02]} 43. Kc4 {[%clk 0:00:44]}  Nxf4 {[%clk 0:00:02]} 44. Rb7+ {[%clk 0:00:44]}  Kc8 {[%clk 0:00:01]} 45. Rg7 {[%clk 0:00:43]}  Rh2 {[%clk 0:00:01]} 46. e6 {[%clk 0:00:42]}  Kd8 {[%clk 0:00:01]} 47. Nc6+ {[%clk 0:00:39]}  Ke8 {[%clk 0:00:01]} 48. Rg8# {[%clk 0:00:39]} 1-0


[Site "https://www.chess.com"]